[Event "DVM U10 2024"]
[Site "Duesseldorf"]
[Date "2024.12.28"]
[Round "5"]
[White "Fabritius, Wolf"]
[Black "Liu, Jonas"]
[Result "0-1"]
[ECO "E87"]
[WhiteElo "1405"]
[BlackElo "1690"]
[Annotator "NA RC"]
[PlyCount "48"]
[EventDate "2024.12.23"]
[EventType "team-tourn"]
[EventRounds "7"]
[EventCountry "GER"]
[SourceTitle "playchess.com"]
[Source "ChessBase"]
[SourceQuality "1"]
[TimeControl "3300+5"]

1. d4 {[%emt 0:00:01]} Nf6 {[%emt 0:00:13]} 2. c4 {[%emt 0:00:07]} g6 {[%emt 0:00:09]} 3. Nc3 {[%emt 0:00:05]} Bg7 {[%emt 0:00:11]} 4. e4 {[%emt 0:00:03]} d6 {[%emt 0:00:09]} 5. f3 {[%emt 0:00:06]} O-O {[%emt 0:00:39]} 6. Bd3 {[%emt 0:00:18]} e5 {[%emt 0:00:27]} 7. d5 {[%emt 0:00:05]} Nbd7 {[%emt 0:00:39]} 8. Be3 {[%emt 0:00:10]} b6 {[%emt 0:00:25]} 9. g4 {[%emt 0:00:06]} a5 {[%emt 0:01:27]} 10. Qd2 {[%emt 0:00:10]} Nc5 {[%emt 0:00:32]} 11. h4 {[%emt 0:00:17]} h5 {[%emt 0:00:43]} 12. gxh5 {[%emt 0:01:06]} Nxh5 {[%emt 0:00:17]} 13. Nge2 {[%emt 0:00:12]} Qf6 {[%emt 0:00:54]} 14. O-O-O {[%emt 0:02:02]} a4 {[%emt 0:04:10]} 15. f4 {[%emt 0:00:47]} exf4 {[%emt 0:00:43]} 16. Nxf4 {[%emt 0:00:29]} Nxf4 {[%emt 0:00:58]} 17. Bxc5 {[%emt 0:00:40]} bxc5 {[%emt 0:00:37]} 18. Kb1 {[%emt 0:01:43]} Nxd3 {[%emt 0:00:32]} 19. Qxd3 {[%emt 0:00:09]} a3 {[%emt 0:00:26]} 20. Rc1 {[%emt 0:01:47]} axb2 {[%emt 0:00:46]} 21. Kxb2 {[%emt 0:00:11]} Qd4 {[%emt 0:00:46]} 22. Rhd1 {[%emt 0:03:05]} Bg4 {[%emt 0:01:24]} 23. Rd2 {[%emt 0:02:17]} Rfb8+ {[%emt 0:00:29]} 24. Kc2 {[%emt 0:00:57]} Rxa2+ {[%emt 0:00:27]} 0-1

[Event "DVM U10 2024"]
[Site "Duesseldorf"]
[Date "2024.12.28"]
[Round "5"]
[White "Glaser-Gallion, Ludwig"]
[Black "Dres, Friedrich"]
[Result "1/2-1/2"]
[ECO "B01"]
[WhiteElo "1358"]
[BlackElo "1123"]
[Annotator "NA RC"]
[PlyCount "109"]
[EventDate "2024.12.23"]
[EventType "team-tourn"]
[EventRounds "7"]
[EventCountry "GER"]
[SourceTitle "playchess.com"]
[Source "ChessBase"]
[SourceQuality "1"]
[TimeControl "3300+5"]

1. e4 {[%emt 0:00:05]} d5 {[%emt 0:00:04]} 2. exd5 {[%emt 0:00:12]} Qxd5 {[%emt 0:00:09]} 3. Nc3 {[%emt 0:00:09]} Qa5 {[%emt 0:00:05]} 4. Nf3 {[%emt 0:00:18]} c6 {[%emt 0:00:06]} 5. Bc4 {[%emt 0:00:43]} e6 {[%emt 0:00:07]} 6. d3 {[%emt 0:01:11]} Nf6 {[%emt 0:00:07]} 7. Bd2 {[%emt 0:00:57]} Qc7 {[%emt 0:00:06]} 8. O-O {[%emt 0:01:12]} a5 {[%emt 0:00:13]} 9. a4 {[%emt 0:00:43]} Bd6 {[%emt 0:00:26]} 10. h3 {[%emt 0:00:29]} O-O {[%emt 0:00:20]} 11. Bg5 {[%emt 0:01:17]} Nbd7 {[%emt 0:00:07]} 12. Re1 {[%emt 0:01:19]} h6 {[%emt 0:03:15]} 13. Bxf6 {[%emt 0:02:46]} Nxf6 {[%emt 0:00:07]} 14. d4 {[%emt 0:03:04]} Rd8 {[%emt 0:01:19]} 15. Qc1 {[%emt 0:04:05]} Bf4 {[%emt 0:00:44]} 16. Qb1 {[%emt 0:04:55]} b6 {[%emt 0:00:23]} 17. Ne2 {[%emt 0:03:42]} Bd6 {[%emt 0:00:15]} 18. c3 {[%emt 0:01:10]} Bb7 {[%emt 0:00:38]} 19. Rd1 {[%emt 0:03:56]} c5 {[%emt 0:01:15]} 20. Nd2 {[%emt 0:01:48]} Qc6 {[%emt 0:00:54]} 21. f3 {[%emt 0:01:04]} Rd7 {[%emt 0:01:10]} 22. Bb5 {[%emt 0:00:28]} Qc8 {[%emt 0:01:52]} 23. Bxd7 {[%emt 0:00:19]} Qxd7 {[%emt 0:00:06]} 24. Kh1 {[%emt 0:02:45]} Ba6 {[%emt 0:00:35]} 25. c4 {[%emt 0:02:45]} Qc7 {[%emt 0:01:22]} 26. b3 {[%emt 0:01:28]} Bh2 {[%emt 0:01:30]} 27. Nf1 {[%emt 0:01:40]} Bd6 {[%emt 0:00:50]} 28. Ra2 {[%emt 0:01:33]} Re8 {[%emt 0:01:29]} 29. Rad2 {[%emt 0:00:43]} e5 {[%emt 0:00:32]} 30. dxe5 {[%emt 0:01:22]} Bxe5 {[%emt 0:00:09]} 31. Qc2 {[%emt 0:01:52]} Bc8 {[%emt 0:01:29]} 32. Ne3 {[%emt 0:00:46]} Nh5 {[%emt 0:01:01]} 33. Nf1 {[%emt 0:00:55]} Bb7 {[%emt 0:01:03]} 34. Rd7 {[%emt 0:00:40]} Qc8 {[%emt 0:00:09]} 35. Qf5 {[%emt 0:00:36]} Nf6 {[%emt 0:00:23]} 36. f4 {[%emt 0:01:28]} Bb8 {[%emt 0:00:26]} 37. Qd3 {[%emt 0:00:44]} Qxd7 {[%emt 0:00:14]} 38. Qxd7 {[%emt 0:00:01]} Nxd7 {[%emt 0:00:15]} 39. Rxd7 {[%emt 0:00:04]} Rxe2 {[%emt 0:00:04]} 40. Rxb7 {[%emt 0:00:06]} Bxf4 {[%emt 0:00:12]} 41. g3 {[%emt 0:00:38]} Re1 {[%emt 0:00:17]} 42. Kg2 {[%emt 0:00:14]} Be5 {[%emt 0:00:23]} 43. Rxb6 {[%emt 0:00:07]} Bd4 {[%emt 0:00:15]} 44. Nh2 {[%emt 0:01:08]} Rg1+ {[%emt 0:00:45]} 45. Kf3 {[%emt 0:00:01]} Rb1 {[%emt 0:00:34]} 46. Ng4 {[%emt 0:00:16]} h5 {[%emt 0:00:33]} 47. Ne3 {[%emt 0:00:19]} Re1 {[%emt 0:00:18]} 48. Nd5 {[%emt 0:00:03]} Rf1+ {[%emt 0:00:19]} 49. Ke4 {[%emt 0:00:07]} f5+ {[%emt 0:00:41]} 50. Kd3 {[%emt 0:00:04]} Rf3+ {[%emt 0:00:09]} 51. Ke2 {[%emt 0:00:00]} Rxg3 {[%emt 0:00:27]} 52. Ne7+ {[%emt 0:00:06]} Kh7 {[%emt 0:00:17]} 53. Nxf5 {[%emt 0:00:02]} Rxh3 {[%emt 0:00:26]} 54. Nxd4 {[%emt 0:01:26]} cxd4 {[%emt 0:00:01]} 55. b4 1/2-1/2

[Event "DVM U10 2024"]
[Site "Duesseldorf"]
[Date "2024.12.28"]
[Round "5"]
[White "Estrin, Boris"]
[Black "White, William"]
[Result "0-1"]
[ECO "C55"]
[WhiteElo "1338"]
[BlackElo "1750"]
[Annotator "NA RC"]
[PlyCount "76"]
[EventDate "2024.12.23"]
[EventType "team-tourn"]
[EventRounds "7"]
[EventCountry "GER"]
[SourceTitle "playchess.com"]
[Source "ChessBase"]
[SourceQuality "1"]
[TimeControl "3300+5"]

1. e4 {[%emt 0:00:02]} e5 {[%emt 0:00:06]} 2. Nf3 {[%emt 0:00:05]} Nc6 {[%emt 0:00:04]} 3. Bc4 {[%emt 0:00:05]} Nf6 {[%emt 0:00:59]} 4. O-O {[%emt 0:00:09]} Be7 {[%emt 0:00:05]} 5. c3 {[%emt 0:00:12]} d6 {[%emt 0:00:30]} 6. d4 {[%emt 0:00:10]} exd4 {[%emt 0:01:58]} 7. cxd4 {[%emt 0:00:08]} Nxe4 {[%emt 0:02:25]} 8. Re1 {[%emt 0:00:42]} Nf6 {[%emt 0:00:36]} 9. Nc3 {[%emt 0:01:13]} Bg4 {[%emt 0:02:32]} 10. Bf4 {[%emt 0:01:21]} O-O {[%emt 0:01:21]} 11. Be2 {[%emt 0:01:07]} Re8 {[%emt 0:03:49]} 12. d5 {[%emt 0:01:41]} Nb8 {[%emt 0:01:25]} 13. Rc1 {[%emt 0:01:18]} a6 {[%emt 0:00:46]} 14. Qc2 {[%emt 0:00:39]} Nbd7 {[%emt 0:01:39]} 15. Nd4 {[%emt 0:02:58]} Bxe2 {[%emt 0:01:06]} 16. Rxe2 {[%emt 0:00:12]} Nb6 {[%emt 0:01:16]} 17. Qb3 {[%emt 0:01:35]} Qd7 {[%emt 0:00:40]} 18. Rce1 {[%emt 0:01:12]} Bf8 {[%emt 0:04:10]} 19. h3 {[%emt 0:01:10]} h6 {[%emt 0:01:12]} 20. Ne4 {[%emt 0:01:45]} Nfxd5 {[%emt 0:02:55]} 21. Qg3 {[%emt 0:01:04]} Kh8 {[%emt 0:01:17]} 22. Bd2 {[%emt 0:02:24]} Nc4 {[%emt 0:02:06]} 23. Bc3 {[%emt 0:01:04]} Nxc3 {[%emt 0:01:47]} 24. Nxc3 {[%emt 0:00:12]} Rxe2 {[%emt 0:02:43]} 25. Rxe2 {[%emt 0:00:40]} c5 {[%emt 0:01:11]} 26. Nb3 {[%emt 0:00:57]} Re8 {[%emt 0:00:18]} 27. Nc1 {[%emt 0:01:33]} Rxe2 {[%emt 0:00:49]} 28. N3xe2 {[%emt 0:00:16]} b5 {[%emt 0:01:19]} 29. Qc3 {[%emt 0:01:03]} Ne5 {[%emt 0:01:11]} 30. Nd3 {[%emt 0:00:49]} Nxd3 {[%emt 0:00:05]} 31. Qxd3 {[%emt 0:00:14]} Qe6 {[%emt 0:00:32]} 32. Qf3 {[%emt 0:00:46]} Qxa2 {[%emt 0:01:16]} 33. b3 {[%emt 0:00:45]} Qa1+ {[%emt 0:00:22]} 34. Kh2 {[%emt 0:00:09]} Qe5+ {[%emt 0:00:22]} 35. Nf4 {[%emt 0:00:13]} g5 {[%emt 0:00:34]} 36. Qa8 {[%emt 0:00:23]} Qxf4+ {[%emt 0:00:06]} 37. g3 {[%emt 0:00:07]} Qxf2+ {[%emt 0:00:11]} 38. Kh1 {[%emt 0:00:06]} Kg8 {[%emt 0:00:31]} 0-1

[Event "DVM U10 2024"]
[Site "Duesseldorf"]
[Date "2024.12.28"]
[Round "5"]
[White "Karabetyan, Levon"]
[Black "Zentgraf, Raphael"]
[Result "1-0"]
[ECO "B23"]
[WhiteElo "1230"]
[BlackElo "1175"]
[Annotator "NA RC"]
[PlyCount "109"]
[EventDate "2024.12.23"]
[EventType "team-tourn"]
[EventRounds "7"]
[EventCountry "GER"]
[SourceTitle "playchess.com"]
[Source "ChessBase"]
[SourceQuality "1"]
[TimeControl "3300+5"]

1. e4 {[%emt 0:00:02]} c5 {[%emt 0:00:06]} 2. Nc3 {[%emt 0:00:15]} e6 {[%emt 0:00:19]} 3. f4 {[%emt 0:00:22]} Nc6 {[%emt 0:00:16]} 4. Nf3 {[%emt 0:00:33]} d6 {[%emt 0:00:10]} 5. Bc4 {[%emt 0:01:09]} Qc7 {[%emt 0:00:15]} 6. d3 {[%emt 0:00:27]} Nf6 {[%emt 0:00:16]} 7. O-O {[%emt 0:01:06]} Be7 {[%emt 0:00:18]} 8. Bd2 {[%emt 0:01:24]} a6 {[%emt 0:00:29]} 9. a4 {[%emt 0:01:01]} O-O {[%emt 0:00:21]} 10. Qe1 {[%emt 0:03:00]} Nd7 {[%emt 0:01:39]} 11. Qg3 {[%emt 0:05:59]} Rb8 {[%emt 0:04:11]} 12. Rfe1 {[%emt 0:05:44]} Bf6 {[%emt 0:00:32]} 13. Kh1 {[%emt 0:01:45]} Nd4 {[%emt 0:01:53]} 14. Nxd4 {[%emt 0:04:13]} cxd4 {[%emt 0:00:16]} 15. Ne2 {[%emt 0:00:48]} Qd8 {[%emt 0:01:18]} 16. Qg4 {[%emt 0:02:54]} e5 {[%emt 0:01:16]} 17. f5 {[%emt 0:01:10]} Nc5 {[%emt 0:00:59]} 18. b4 {[%emt 0:02:34]} Nd7 {[%emt 0:00:21]} 19. Kg1 {[%emt 0:01:43]} b5 {[%emt 0:00:42]} 20. Bb3 {[%emt 0:00:59]} Bb7 {[%emt 0:00:16]} 21. axb5 {[%emt 0:00:40]} axb5 {[%emt 0:00:14]} 22. Ng3 {[%emt 0:02:25]} Bh4 {[%emt 0:01:17]} 23. Rf1 {[%emt 0:01:38]} Bf6 {[%emt 0:00:21]} 24. Nh5 {[%emt 0:00:41]} Nb6 {[%emt 0:03:30]} 25. Bh6 {[%emt 0:00:57]} g6 {[%emt 0:00:40]} 26. Bxf8 {[%emt 0:00:27]} Kxf8 {[%emt 0:00:10]} 27. Nxf6 {[%emt 0:00:23]} Qxf6 {[%emt 0:00:13]} 28. fxg6 {[%emt 0:00:17]} Qxg6 {[%emt 0:00:40]} 29. Qxg6 {[%emt 0:00:13]} hxg6 {[%emt 0:00:12]} 30. Bxf7 {[%emt 0:00:19]} Kg7 {[%emt 0:00:18]} 31. Ra7 {[%emt 0:00:48]} Nc8 {[%emt 0:00:44]} 32. Ra5 {[%emt 0:00:23]} Bc6 {[%emt 0:00:10]} 33. h4 {[%emt 0:00:31]} Rb7 {[%emt 0:00:13]} 34. Bb3 {[%emt 0:00:25]} Re7 {[%emt 0:00:55]} 35. g4 {[%emt 0:00:22]} Bd7 {[%emt 0:01:03]} 36. g5 {[%emt 0:00:32]} Bh3 {[%emt 0:00:56]} 37. Rf6 {[%emt 0:00:28]} Bd7 {[%emt 0:00:13]} 38. Kf2 {[%emt 0:00:34]} Kh7 {[%emt 0:00:53]} 39. Rf7+ {[%emt 0:00:21]} Rxf7+ {[%emt 0:00:10]} 40. Bxf7 {[%emt 0:00:00]} Kg7 {[%emt 0:00:09]} 41. Bd5 {[%emt 0:00:15]} Kf8 {[%emt 0:00:35]} 42. Bb7 {[%emt 0:00:35]} Ne7 {[%emt 0:00:33]} 43. Ra6 {[%emt 0:00:26]} Nc8 {[%emt 0:00:30]} 44. Ra8 {[%emt 0:00:15]} Ke8 {[%emt 0:00:24]} 45. Bxc8 {[%emt 0:00:08]} Bxc8 {[%emt 0:00:08]} 46. Rxc8+ {[%emt 0:00:03]} Kd7 {[%emt 0:00:09]} 47. Rg8 {[%emt 0:00:12]} Ke7 {[%emt 0:00:12]} 48. Rxg6 {[%emt 0:00:01]} Kf7 {[%emt 0:00:16]} 49. Rf6+ {[%emt 0:00:07]} Kg7 {[%emt 0:00:13]} 50. Rxd6 {[%emt 0:00:07]} Kf7 {[%emt 0:00:20]} 51. h5 {[%emt 0:00:05]} Kg7 {[%emt 0:00:08]} 52. h6+ {[%emt 0:00:06]} Kh7 {[%emt 0:00:09]} 53. Rd7+ {[%emt 0:00:14]} Kh8 {[%emt 0:00:13]} 54. g6 {[%emt 0:00:30]} Kg8 {[%emt 0:00:16]} 55. Rd8# {[%emt 0:00:18]} 1-0

[Event "DVM U10 2024"]
[Site "Duesseldorf"]
[Date "2024.12.28"]
[Round "5"]
[White "Frikel, Konstantin"]
[Black "Haberger, Nino"]
[Result "1-0"]
[ECO "C10"]
[WhiteElo "1199"]
[BlackElo "1098"]
[Annotator "NA RC"]
[PlyCount "123"]
[EventDate "2024.12.23"]
[EventType "team-tourn"]
[EventRounds "7"]
[EventCountry "GER"]
[SourceTitle "playchess.com"]
[Source "ChessBase"]
[SourceQuality "1"]
[TimeControl "3300+5"]

1. e4 {[%emt 0:00:01]} e6 {[%emt 0:00:01]} 2. d4 {[%emt 0:00:13]} d5 {[%emt 0:00:06]} 3. Nd2 {[%emt 0:00:12]} dxe4 {[%emt 0:00:14]} 4. Nxe4 {[%emt 0:00:10]} Bd7 {[%emt 0:00:10]} 5. Bd3 {[%emt 0:00:31]} Nc6 {[%emt 0:00:16]} 6. Nf3 {[%emt 0:00:23]} Be7 {[%emt 0:00:15]} 7. Bf4 {[%emt 0:00:31]} Nf6 {[%emt 0:00:08]} 8. O-O {[%emt 0:00:53]} O-O {[%emt 0:00:08]} 9. Re1 {[%emt 0:00:36]} Nxe4 {[%emt 0:00:10]} 10. Bxe4 {[%emt 0:00:20]} Bf6 {[%emt 0:00:21]} 11. c3 {[%emt 0:01:43]} Re8 {[%emt 0:00:14]} 12. Qc2 {[%emt 0:01:21]} g6 {[%emt 0:00:14]} 13. Rad1 {[%emt 0:01:31]} Rc8 {[%emt 0:00:21]} 14. h3 {[%emt 0:00:43]} Qe7 {[%emt 0:00:21]} 15. Re2 {[%emt 0:05:22]} Qf8 {[%emt 0:02:17]} 16. b4 {[%emt 0:02:31]} a6 {[%emt 0:00:24]} 17. Rde1 {[%emt 0:03:28]} Bg7 {[%emt 0:01:56]} 18. Qb3 {[%emt 0:01:39]} Bh6 {[%emt 0:02:57]} 19. Bg3 {[%emt 0:01:01]} Qg7 {[%emt 0:03:25]} 20. a4 {[%emt 0:02:02]} b5 {[%emt 0:01:18]} 21. axb5 {[%emt 0:00:37]} axb5 {[%emt 0:00:17]} 22. Ra1 {[%emt 0:02:32]} Red8 {[%emt 0:06:03]} 23. Ra6 {[%emt 0:01:10]} Ne7 {[%emt 0:00:20]} 24. Ra7 {[%emt 0:00:41]} c6 {[%emt 0:00:51]} 25. Bc7 {[%emt 0:02:22]} Rf8 {[%emt 0:00:39]} 26. Bd6 {[%emt 0:00:14]} Rfe8 {[%emt 0:03:17]} 27. Rxd7 {[%emt 0:00:30]} Qf8 {[%emt 0:01:39]} 28. Bxe7 {[%emt 0:02:19]} Rxe7 {[%emt 0:00:17]} 29. Rxe7 {[%emt 0:00:11]} Qxe7 {[%emt 0:00:09]} 30. Ne5 {[%emt 0:01:13]} Qd6 {[%emt 0:00:43]} 31. Ra2 {[%emt 0:01:12]} f6 {[%emt 0:00:31]} 32. Nf3 {[%emt 0:01:34]} f5 {[%emt 0:00:31]} 33. Bd3 {[%emt 0:00:19]} Bg7 {[%emt 0:00:57]} 34. Qc2 {[%emt 0:01:09]} Qd5 {[%emt 0:00:38]} 35. Ra7 {[%emt 0:00:28]} Qd6 {[%emt 0:01:38]} 36. Qa2 {[%emt 0:00:25]} Qb8 {[%emt 0:01:18]} 37. Qa6 {[%emt 0:00:23]} Rf8 {[%emt 0:02:48]} 38. Qb7 {[%emt 0:00:30]} Qxb7 {[%emt 0:00:19]} 39. Rxb7 {[%emt 0:00:12]} Rf7 {[%emt 0:00:24]} 40. Rxf7 {[%emt 0:00:19]} Kxf7 {[%emt 0:00:10]} 41. Ng5+ {[%emt 0:00:13]} Ke7 {[%emt 0:01:29]} 42. Nxh7 {[%emt 0:00:24]} Bh6 {[%emt 0:00:11]} 43. h4 {[%emt 0:00:11]} Kf7 {[%emt 0:00:38]} 44. Ng5+ {[%emt 0:00:12]} Bxg5 {[%emt 0:00:11]} 45. hxg5 {[%emt 0:00:10]} Ke7 {[%emt 0:00:16]} 46. f4 {[%emt 0:00:30]} Kf7 {[%emt 0:00:21]} 47. Kf2 {[%emt 0:00:26]} Ke7 {[%emt 0:00:10]} 48. Kf3 {[%emt 0:00:27]} Kd7 {[%emt 0:00:16]} 49. g4 {[%emt 0:00:07]} Kd6 {[%emt 0:00:30]} 50. gxf5 {[%emt 0:00:33]} exf5 {[%emt 0:00:19]} 51. Bxf5 {[%emt 0:01:04]} gxf5 {[%emt 0:00:16]} 52. Kg3 {[%emt 0:00:24]} Ke6 {[%emt 0:00:10]} 53. Kh4 {[%emt 0:00:16]} Kf7 {[%emt 0:00:10]} 54. Kh5 {[%emt 0:00:23]} Kg7 {[%emt 0:00:11]} 55. g6 {[%emt 0:00:40]} Kg8 {[%emt 0:00:19]} 56. Kh6 {[%emt 0:00:27]} Kh8 {[%emt 0:00:19]} 57. g7+ {[%emt 0:00:08]} Kg8 {[%emt 0:00:10]} 58. Kg6 {[%emt 0:00:18]} c5 {[%emt 0:00:13]} 59. bxc5 {[%emt 0:00:16]} b4 {[%emt 0:00:13]} 60. c6 {[%emt 0:00:18]} bxc3 {[%emt 0:00:08]} 61. c7 {[%emt 0:00:24]} c2 {[%emt 0:00:06]} 62. c8=Q# {[%emt 0:00:31]} 1-0

[Event "DVM U10 2024"]
[Site "Duesseldorf"]
[Date "2024.12.28"]
[Round "5"]
[White "Liu, Mio Runhan"]
[Black "von Gehlen, Samuel"]
[Result "1-0"]
[ECO "B13"]
[WhiteElo "1198"]
[BlackElo "1459"]
[Annotator "NA RC"]
[PlyCount "79"]
[EventDate "2024.12.23"]
[EventType "team-tourn"]
[EventRounds "7"]
[EventCountry "GER"]
[SourceTitle "playchess.com"]
[Source "ChessBase"]
[SourceQuality "1"]
[TimeControl "3300+5"]

1. e4 {[%emt 0:00:05]} c6 {[%emt 0:00:08]} 2. d4 {[%emt 0:00:11]} d5 {[%emt 0:00:05]} 3. exd5 {[%emt 0:00:31]} cxd5 {[%emt 0:00:04]} 4. Nc3 {[%emt 0:00:16]} Bf5 {[%emt 0:00:10]} 5. Nf3 {[%emt 0:01:00]} e6 {[%emt 0:00:03]} 6. Bb5+ {[%emt 0:00:26]} Nc6 {[%emt 0:00:11]} 7. Ne5 {[%emt 0:00:14]} Qc7 {[%emt 0:00:43]} 8. Bf4 {[%emt 0:01:21]} Bd6 {[%emt 0:00:31]} 9. O-O {[%emt 0:01:52]} f6 {[%emt 0:00:16]} 10. Nxc6 {[%emt 0:00:16]} bxc6 {[%emt 0:00:05]} 11. Bxd6 {[%emt 0:00:07]} Qxd6 {[%emt 0:00:18]} 12. Ba4 {[%emt 0:00:12]} Ne7 {[%emt 0:00:15]} 13. Re1 {[%emt 0:00:47]} Ng6 {[%emt 0:00:20]} 14. Qh5 {[%emt 0:01:39]} O-O {[%emt 0:01:32]} 15. Ne2 {[%emt 0:00:38]} Nf4 {[%emt 0:01:45]} 16. Nxf4 {[%emt 0:00:24]} Qxf4 {[%emt 0:00:07]} 17. Qd1 {[%emt 0:01:25]} Rac8 {[%emt 0:01:00]} 18. c3 {[%emt 0:01:49]} e5 {[%emt 0:00:51]} 19. dxe5 {[%emt 0:00:35]} fxe5 {[%emt 0:00:00]} 20. Bb3 {[%emt 0:00:18]} Be4 {[%emt 0:00:00]} 21. Kh1 {[%emt 0:01:24]} Qxf2 {[%emt 0:00:01]} 22. Rxe4 {[%emt 0:00:35]} Kh8 {[%emt 0:01:37]} 23. Re2 {[%emt 0:00:38]} Qf4 {[%emt 0:00:28]} 24. Re1 {[%emt 0:01:43]} Rc7 {[%emt 0:01:28]} 25. Rf1 {[%emt 0:00:34]} Qxf1+ {[%emt 0:00:32]} 26. Qxf1 {[%emt 0:00:23]} Rxf1+ {[%emt 0:00:01]} 27. Rxf1 {[%emt 0:00:18]} g6 {[%emt 0:00:28]} 28. Re1 {[%emt 0:00:14]} Rf7 {[%emt 0:00:57]} 29. h3 {[%emt 0:00:01]} e4 {[%emt 0:00:11]} 30. Ba4 {[%emt 0:00:32]} c5 {[%emt 0:00:40]} 31. Bc6 {[%emt 0:00:11]} Rf5 {[%emt 0:00:22]} 32. c4 {[%emt 0:01:19]} d4 {[%emt 0:04:15]} 33. Bxe4 {[%emt 0:00:12]} Re5 {[%emt 0:00:08]} 34. Re2 {[%emt 0:00:09]} Kg7 {[%emt 0:00:30]} 35. Bf3 {[%emt 0:00:24]} Kf6 {[%emt 0:01:26]} 36. Kg1 {[%emt 0:00:29]} Rxe2 {[%emt 0:02:06]} 37. Bxe2 {[%emt 0:00:13]} Ke5 {[%emt 0:00:05]} 38. Bd3 {[%emt 0:00:16]} Kf4 {[%emt 0:00:26]} 39. Kf2 {[%emt 0:00:09]} Ke5 {[%emt 0:00:34]} 40. Kf3 {[%emt 0:00:13]} 1-0

[Event "DVM U10 2024"]
[Site "Duesseldorf"]
[Date "2024.12.28"]
[Round "5"]
[White "Klaus, Simon"]
[Black "Nikolic, Luka"]
[Result "0-1"]
[ECO "B13"]
[WhiteElo "1197"]
[BlackElo "1579"]
[Annotator "NA RC"]
[PlyCount "134"]
[EventDate "2024.12.23"]
[EventType "team-tourn"]
[EventRounds "7"]
[EventCountry "GER"]
[SourceTitle "playchess.com"]
[Source "ChessBase"]
[SourceQuality "1"]
[TimeControl "3300+5"]

1. e4 {[%emt 0:00:02]} c6 {[%emt 0:00:05]} 2. d4 {[%emt 0:00:06]} d5 {[%emt 0:00:06]} 3. exd5 {[%emt 0:00:06]} cxd5 {[%emt 0:00:06]} 4. Bd3 {[%emt 0:00:06]} Nf6 {[%emt 0:00:06]} 5. c3 {[%emt 0:00:14]} Nc6 {[%emt 0:00:11]} 6. Bf4 {[%emt 0:00:19]} Bg4 {[%emt 0:00:16]} 7. f3 {[%emt 0:00:19]} Bh5 {[%emt 0:00:13]} 8. Ne2 {[%emt 0:00:53]} e6 {[%emt 0:00:11]} 9. O-O {[%emt 0:00:21]} Bd6 {[%emt 0:00:12]} 10. Nd2 {[%emt 0:00:32]} Bxf4 {[%emt 0:01:05]} 11. Nxf4 {[%emt 0:00:16]} Qb6 {[%emt 0:00:44]} 12. Qb3 {[%emt 0:01:41]} Qc7 {[%emt 0:00:50]} 13. Rfe1 {[%emt 0:02:52]} Qxf4 {[%emt 0:04:54]} 14. Qxb7 {[%emt 0:01:00]} O-O {[%emt 0:01:12]} 15. Rad1 {[%emt 0:00:32]} Rfc8 {[%emt 0:00:47]} 16. Bb5 {[%emt 0:02:17]} Qc7 {[%emt 0:00:38]} 17. Bxc6 {[%emt 0:03:30]} Qxc6 {[%emt 0:00:34]} 18. Qb3 {[%emt 0:00:27]} Rab8 {[%emt 0:00:31]} 19. Qc2 {[%emt 0:00:33]} Bg6 {[%emt 0:00:28]} 20. Qc1 {[%emt 0:00:33]} Qa4 {[%emt 0:00:26]} 21. Qa1 {[%emt 0:04:05]} Qb5 {[%emt 0:01:28]} 22. b3 {[%emt 0:00:57]} Qc6 {[%emt 0:02:41]} 23. Rc1 {[%emt 0:01:11]} Nh5 {[%emt 0:00:34]} 24. g3 {[%emt 0:00:53]} Rb7 {[%emt 0:01:03]} 25. Re3 {[%emt 0:04:18]} Qb6 {[%emt 0:01:09]} 26. Kg2 {[%emt 0:07:09]} Re7 {[%emt 0:00:56]} 27. Rce1 {[%emt 0:04:13]} Qa5 {[%emt 0:01:15]} 28. Qb2 {[%emt 0:08:18]} Rb7 {[%emt 0:00:29]} 29. Rc1 {[%emt 0:00:44]} Qb6 {[%emt 0:00:51]} 30. Rce1 {[%emt 0:02:40]} a5 {[%emt 0:00:40]} 31. a4 {[%emt 0:00:43]} f5 {[%emt 0:00:38]} 32. Rxe6 {[%emt 0:00:39]} Qc7 {[%emt 0:00:08]} 33. Re7 {[%emt 0:01:22]} Qc6 {[%emt 0:01:14]} 34. R7e3 {[%emt 0:00:33]} Qxa4 {[%emt 0:00:41]} 35. bxa4 {[%emt 0:00:41]} Rxb2 {[%emt 0:00:11]} 36. R1e2 {[%emt 0:00:38]} f4 {[%emt 0:00:27]} 37. Re5 {[%emt 0:00:01]} Bf7 {[%emt 0:00:40]} 38. Rf5 {[%emt 0:00:33]} g6 {[%emt 0:00:57]} 39. Rfe5 {[%emt 0:00:01]} Ng7 {[%emt 0:00:13]} 40. gxf4 {[%emt 0:00:17]} Rxc3 {[%emt 0:00:16]} 41. Kh3 {[%emt 0:00:39]} Rcc2 {[%emt 0:00:22]} 42. Re7 {[%emt 0:00:49]} Rxd2 {[%emt 0:00:41]} 43. Rxd2 {[%emt 0:00:00]} Rxd2 {[%emt 0:00:11]} 44. Ra7 {[%emt 0:00:03]} Rxd4 {[%emt 0:00:10]} 45. Rxa5 {[%emt 0:00:06]} Be8 {[%emt 0:00:19]} 46. Kg3 {[%emt 0:00:16]} Rxa4 {[%emt 0:00:23]} 47. Rxd5 {[%emt 0:00:01]} Bc6 {[%emt 0:00:42]} 48. Rd8+ {[%emt 0:00:01]} Ne8 {[%emt 0:00:12]} 49. Rc8 {[%emt 0:00:02]} Bb5 {[%emt 0:00:23]} 50. Rb8 {[%emt 0:00:01]} Rb4 {[%emt 0:00:08]} 51. h4 {[%emt 0:00:08]} Rb3 {[%emt 0:00:21]} 52. Kg4 {[%emt 0:00:31]} Bd7+ {[%emt 0:00:07]} 53. f5 {[%emt 0:00:05]} Bxf5+ {[%emt 0:00:12]} 54. Kg5 {[%emt 0:00:06]} Rxb8 {[%emt 0:00:04]} 55. f4 {[%emt 0:00:02]} Kg7 {[%emt 0:00:19]} 56. h5 {[%emt 0:00:05]} gxh5 {[%emt 0:00:50]} 57. Kxf5 {[%emt 0:00:12]} Rb5+ {[%emt 0:00:16]} 58. Ke6 {[%emt 0:00:03]} h4 {[%emt 0:00:19]} 59. f5 h3 {[%emt 0:00:08]} 60. f6+ {[%emt 0:00:01]} Kf8 {[%emt 0:00:41]} 61. f7 {[%emt 0:00:05]} Rb6+ {[%emt 0:00:16]} 62. Kd7 {[%emt 0:00:12]} Kxf7 {[%emt 0:00:38]} 63. Kc8 {[%emt 0:00:09]} h2 {[%emt 0:00:14]} 64. Kd8 {[%emt 0:00:05]} h1=Q {[%emt 0:00:07]} 65. Kd7 {[%emt 0:00:03]} Qd1+ {[%emt 0:00:09]} 66. Kc8 {[%emt 0:00:03]} Rc6+ {[%emt 0:00:20]} 67. Kb7 {[%emt 0:00:05]} Rc2 {[%emt 0:00:13]} 0-1